bitfinex/quotes_SOLUSD_20250719
["timestamp","ask_amount","ask_price","bid_price","bid_amount"]
[1752960993387,0.03,175.74,175.72,67.30270245]
[1752960993565,0.1,175.76,175.75,44.40758397]
[1752960993769,0.03,175.77,175.75,44.40758397]
[1752960993770,0.03,175.77,175.76,16.78468397]
[1752960993971,0.03,175.77,175.76,24.84897725]
[1752960994192,0.03,175.79,175.77,5.689253]
[1752960994369,0.03,175.79,175.78,44.11714664]
[1752960994564,0.67,175.89,175.79,16.78468397]
[1752960994767,0.67,175.89,175.87,3.67714664]
[1752960996099,0.67,175.89,175.88,3.67714664]
[1752960996265,0.67,175.93,175.88,3.67714664]
[1752960996465,0.67,175.93,175.91,3.67714664]
[1752960997478,6.35408451,175.93,175.91,3.67714664]
[1752960997889,6.35336566,175.96,175.92,4.38714664]
[1752960998091,6.35336566,175.96,175.94,3.67714664]
[1752960998272,6.35336566,175.96,175.93,3.67714664]
[1752960998786,0.67,175.96,175.93,3.67714664]
[1752960999273,4.34714664,175.99,175.94,3.67714664]
[1752960999473,32.35257191,175.98,175.94,3.67714664]
[1752960999690,0.67,175.97,175.94,3.67714664]
[1752960999887,0.67,175.97,175.93,4.38714664]
[1752961000085,4.34714664,175.96,175.91,3.67714664]
[1752961000270,0.67,175.95,175.91,3.67714664]
[1752961000470,0.67,175.94,175.91,3.67714664]
[1752961000670,0.67,175.94,175.89,16.78468397]
[1752961000901,0.67,175.94,175.89,3.67714664]
[1752961001082,0.67,175.93,175.89,3.67714664]
[1752961001495,6.35420114,175.93,175.89,3.67714664]
[1752961001685,0.67,175.92,175.89,3.67714664]
[1752961002071,5.68420114,175.93,175.86,6.39607982]
[1752961002072,0.67,175.91,175.88,3.67714664]
[1752961002268,0.67,175.9,175.87,3.67714664]
[1752961002696,0.67,175.89,175.86,3.67714664]
[1752961003198,0.67,175.89,175.86,5.97212887]
[1752961003801,0.67,175.89,175.84,41.09]
[1752961004101,6.35554822,175.89,175.86,5.97212887]
[1752961004476,0.67,175.88,175.84,40.38]
[1752961004689,0.67,175.88,175.85,5.97212887]
[1752961005483,5.97212887,175.86,175.81,5.97212887]
[1752961005683,0.67,175.85,175.8,22.75681284]
[1752961005884,5.68698817,175.84,175.77,5.68920426]
[1752961006087,6.35698817,175.84,175.8,5.97212887]
[1752961006392,0.67,175.83,175.8,5.97212887]
[1752961008471,6.35745077,175.83,175.8,5.97212887]
[1752961008780,6.64212887,175.82,175.77,6.68212887]
[1752961008990,11.65957964,175.83,175.78,5.97212887]
[1752961009492,11.65957964,175.83,175.74,16.78468397]
[1752961009493,7.52342887,175.82,175.74,16.78468397]
[1752961009682,7.52342887,175.82,175.76,5.97212887]
[1752961009884,7.52342887,175.82,175.77,5.97212887]
[1752961010210,1.5513,175.82,175.78,5.97212887]
[1752961010994,8.19342887,175.82,175.77,6.68212887]
[1752961011208,7.90915572,175.82,175.78,5.97212887]
[1752961011900,13.88128459,175.82,175.77,6.68212887]
[1752961012404,6.35821268,175.81,175.77,0.71]
[1752961012785,12.33034155,175.81,175.76,5.97212887]
[1752961012992,12.33034155,175.81,175.76,6.67212887]
[1752961013491,0.72,175.8,175.76,6.67212887]
[1752961014701,6.40829555,175.8,175.76,6.67212887]
[1752961016678,6.40829555,175.8,175.76,5.97212887]
[1752961017501,6.40829555,175.8,175.76,6.67212887]
[1752961019292,12.38042442,175.8,175.76,0.7]
[1752961019493,12.38042442,175.8,175.75,5.97212887]
[1752961019693,12.38042442,175.8,175.75,6.67212887]
[1752961019895,0.72,175.79,175.75,6.67212887]
[1752961020292,5.97212887,175.79,175.74,5.97212887]
[1752961020616,5.689253,175.77,175.73,0.7]
[1752961020802,5.689253,175.77,175.72,5.97212887]
[1752961021012,0.72,175.76,175.72,6.67212887]
[1752961021912,5.68981724,175.76,175.72,5.97212887]
[1752961022121,0.72,175.75,175.72,5.97212887]
[1752961022419,0.72,175.75,175.71,5.97212887]
[1752961022588,0.72,175.75,175.71,6.67212887]
[1752961022793,6.69212887,175.75,175.71,0.7]
[1752961023213,6.69212887,175.75,175.7,6.03212887]
[1752961023214,0.72,175.74,175.7,6.03212887]
[1752961023605,0.72,175.74,175.71,5.97212887]
[1752961024528,10.48695081,175.74,175.71,5.97212887]
[1752961024826,6.41030839,175.74,175.71,5.97212887]
[1752961025021,6.41030839,175.74,175.7,4.43110661]
[1752961025421,4.08148534,175.73,175.7,4.43110661]
[1752961026408,4.39110661,175.72,175.7,0.06]
[1752961026620,4.08328001,175.71,175.7,0.06]
[1752961027002,4.80328001,175.71,175.7,0.06]
[1752961028425,14.16558234,175.71,175.7,0.06]
[1752961029835,10.49447573,175.71,175.7,0.06]
[1752961030142,14.16558234,175.71,175.7,0.06]
[1752961032505,10.08230233,175.71,175.7,0.06]
[1752961043841,26.0,175.69,175.68,1e-08]
[1752961044040,86.81579058,175.69,175.68,1e-08]
[1752961044228,87.48579058,175.69,175.68,1e-08]
[1752961044741,92.73539719,175.69,175.68,1e-08]
[1752961044939,98.77319719,175.69,175.68,1e-08]
[1752961045515,104.46504077,175.69,175.68,1e-08]
[1752961045714,97.12282755,175.69,175.68,1e-08]
[1752961045918,104.46504077,175.69,175.68,1e-08]
[1752961047145,147.15386768,175.69,175.62,0.06]
[1752961047446,3.67110661,175.63,175.62,0.06]
[1752961047744,60.81579058,175.63,175.62,1e-08]
[1752961047934,61.48579058,175.63,175.62,1e-08]
[1752961048143,65.5665335,175.63,175.62,1e-08]
[1752961048539,67.1450335,175.63,175.62,1e-08]
[1752961048727,26.0,175.6,175.58,0.2]
[1752961048929,44.03110661,175.59,175.58,0.2]
[1752961049130,44.70110661,175.59,175.58,0.2]
[1752961049330,50.39619175,175.59,175.58,0.2]
[1752961052533,26.0,175.56,175.54,0.06]
[1752961052733,44.03110661,175.55,175.54,0.06]
[1752961052934,44.70110661,175.55,175.54,0.06]
[1752961053742,50.3974894,175.55,175.54,0.06]
[1752961054150,54.46919356,175.55,175.54,0.06]
[1752961055861,26.0,175.53,175.52,0.2]
[1752961056058,66.36,175.53,175.52,0.2]
[1752961056265,70.70110661,175.53,175.52,0.2]
[1752961057760,76.39813845,175.53,175.52,0.2]
[1752961062062,0.67,175.56,175.52,0.85]
[1752961062274,3.67110661,175.54,175.52,0.85]
[1752961062443,3.67110661,175.55,175.53,0.65]
[1752961062638,3.67110661,175.55,175.54,0.65]
[1752961062859,44.05110661,175.55,175.52,0.2]
[1752961063065,26.0,175.53,175.52,0.2]
[1752961063266,66.38,175.53,175.52,0.2]
[1752961063578,66.38,175.53,175.52,0.85]
[1752961065967,26.0,175.53,175.52,0.85]
[1752961066151,40.38,175.53,175.52,0.85]
[1752961066344,40.38,175.53,175.52,4.52110661]
[1752961066654,40.38,175.54,175.52,10.21833255]
[1752961066864,40.38,175.54,175.53,4.32110661]
[1752961067050,66.38,175.55,175.53,4.32110661]
[1752961067243,70.05110661,175.55,175.54,0.65]
[1752961067572,66.38,175.55,175.54,0.65]
[1752961070547,66.38,175.55,175.54,4.32110661]
[1752961070762,66.38,175.55,175.52,0.2]
[1752961070763,72.07638279,175.55,175.52,0.2]
[1752961070958,31.69638279,175.55,175.53,0.65]
[1752961071169,40.36,175.54,175.52,0.2]
[1752961071774,40.36,175.54,175.53,0.65]
[1752961072065,49.72781717,175.54,175.52,0.2]
[1752961072250,49.72781717,175.54,175.52,0.85]
[1752961072452,46.05671056,175.54,175.53,0.65]
[1752961073474,46.05671056,175.54,175.52,0.2]
[1752961073857,46.05671056,175.54,175.52,0.87]
[1752961074072,40.36,175.53,175.52,0.2]
[1752961074369,40.36,175.54,175.52,0.2]
[1752961074677,40.36,175.54,175.52,0.87]
[1752961075255,40.36,175.54,175.53,0.67]
[1752961078870,50.41804323,175.54,175.52,0.2]
[1752961079078,3.67110661,175.53,175.52,0.2]
[1752961079272,49.72804323,175.54,175.52,0.2]
[1752961080369,46.05693662,175.54,175.52,0.2]
[1752961080573,46.05693662,175.54,175.52,0.87]
[1752961081390,5.69693662,175.54,175.52,0.87]
[1752961081571,40.36,175.53,175.52,0.87]
[1752961082480,5.69693662,175.54,175.52,0.87]
[1752961082676,40.36,175.53,175.52,0.87]
[1752961085476,26.0,175.55,175.52,4.54110661]
[1752961085682,40.36,175.54,175.53,0.67]
[1752961085992,26.0,175.55,175.52,3.87110661]
[1752961086184,40.36,175.54,175.52,3.87110661]
[1752961086390,40.36,175.54,175.53,0.67]
[1752961086796,26.0,175.55,175.53,0.67]
[1752961087108,66.36,175.55,175.53,4.34110661]
[1752961087279,66.36,175.55,175.53,3.67110661]
[1752961087486,66.36,175.55,175.54,0.67]
[1752961088592,66.34,175.55,175.54,0.67]
[1752961088797,72.72661568,175.55,175.52,0.2]
[1752961088973,75.70772229,175.55,175.52,0.87]
[1752961090595,35.36813845,175.53,175.52,0.2]
[1752961090799,72.03703184,175.53,175.52,0.2]
[1752961091488,76.39813845,175.53,175.52,0.2]
[1752961091674,80.51821668,175.53,175.52,0.2]
[1752961092083,80.51821668,175.53,175.52,1e-08]
[1752961094185,97.30290065,175.53,175.52,1e-08]
[1752961102919,96.96656711,175.53,175.52,1e-08]
[1752961108614,56.62656711,175.53,175.52,1e-08]
[1752961108811,96.96656711,175.53,175.52,1e-08]
[1752961112930,96.95076636,175.53,175.52,1e-08]
[1752961115818,56.61076636,175.53,175.52,1e-08]
[1752961116013,96.98076636,175.53,175.52,1e-08]
[1752961120536,56.64076636,175.53,175.52,1e-08]
[1752961120840,96.96076636,175.53,175.52,1e-08]
[1752961121419,56.64076636,175.53,175.52,1e-08]
[1752961121618,96.96076636,175.53,175.52,1e-08]
[1752961123732,56.64076636,175.53,175.52,1e-08]
[1752961124043,96.96076636,175.53,175.52,1e-08]
[1752961124630,56.64076636,175.53,175.52,1e-08]
[1752961124928,96.96076636,175.53,175.52,1e-08]
[1752961125315,20.45579058,175.49,175.48,1e-08]
[1752961125640,64.88006806,175.49,175.48,1e-08]
[1752961125837,70.57839844,175.49,175.48,1e-08]
[1752961126012,71.23839844,175.49,175.48,1e-08]
[1752961129028,26.0,175.36,175.28,0.67]
[1752961129329,26.0,175.39,175.28,0.67]
[1752961129515,3.67110661,175.36,175.29,7.9634]
[1752961129719,44.53110661,175.35,175.3,0.67]
[1752961129941,26.0,175.32,175.3,0.67]
[1752961130241,31.70410954,175.32,175.29,7.9634]
[1752961130424,41.04,175.35,175.31,4.34110661]
[1752961130630,26.0,175.33,175.32,3.67110661]
[1752961131141,19.95552767,175.39,175.32,3.67110661]
[1752961131320,26.0,175.35,175.33,0.67]
[1752961131521,26.0,175.35,175.33,4.34110661]
[1752961131737,26.0,175.35,175.32,3.67110661]
[1752961131941,44.71110661,175.38,175.34,0.67]
[1752961132127,5.70255474,175.36,175.34,0.67]
[1752961134129,9.8003545,175.35,175.34,0.67]
[1752961135045,13.47146111,175.35,175.34,0.67]
[1752961135630,9.8003545,175.35,175.34,0.67]
[1752961137554,5.70287995,175.35,175.34,0.67]
[1752961138354,5.70287995,175.35,175.34,0.73]
[1752961138850,13.46811149,175.35,175.34,0.73]
[1752961139051,5.70287995,175.35,175.34,0.73]
[1752961139266,13.46774811,175.35,175.34,0.73]
[1752961140532,9.7966415,175.35,175.34,0.73]
[1752961141058,5.70287995,175.35,175.34,0.73]
[1752961143256,9.79231236,175.35,175.34,0.73]
[1752961143457,5.70287995,175.35,175.34,0.73]
[1752961143761,9.37398656,175.35,175.34,0.73]
[1752961144333,9.37398656,175.35,175.34,0.06]
[1752961144334,13.46283667,175.35,175.34,0.06]
[1752961146478,9.79173006,175.35,175.34,0.06]
[1752961146697,13.46283667,175.35,175.34,0.06]
[1752961148986,9.37398656,175.35,175.34,0.78]
[1752961149174,13.46070106,175.35,175.34,0.06]
[1752961149889,13.46070106,175.35,175.34,0.78]
[1752961150394,9.37398656,175.35,175.34,0.78]
[1752961151001,46.54222957,175.37,175.34,4.45110661]
[1752961151172,26.0,175.35,175.34,3.73110661]
[1752961151497,46.54222957,175.37,175.34,3.73110661]
[1752961151879,46.54222957,175.37,175.35,0.72]
[1752961152679,31.70197832,175.38,175.35,4.39110661]
[1752961152887,31.70197832,175.38,175.35,3.67110661]
[1752961153096,31.70197832,175.38,175.36,0.72]
[1752961153478,46.56165307,175.39,175.36,0.72]
[1752961153677,26.0,175.37,175.36,0.72]
[1752961155612,31.70222957,175.37,175.36,0.72]
[1752961159682,31.73222957,175.37,175.36,0.72]
[1752961160308,0.03,175.37,175.36,4.39110661]
[1752961163385,26.03,175.37,175.34,0.06]
[1752961163581,29.67110661,175.36,175.35,0.71]
[1752961163889,0.03,175.37,175.35,4.38110661]
[1752961164189,0.03,175.37,175.36,3.67110661]
[1752961164387,0.03,175.41,175.36,3.67110661]
[1752961164388,4.12591757,175.41,175.36,22.72389058]
[1752961164619,0.03,175.41,175.37,0.71]
[1752961164786,7.79775929,175.41,175.37,0.71]
[1752961164986,3.70110661,175.41,175.37,0.71]
[1752961166404,5.70125427,175.4,175.37,0.71]
[1752961167914,9.37236088,175.4,175.38,0.71]
[1752961168215,5.70125427,175.4,175.38,0.71]
[1752961169207,5.73092925,175.41,175.36,5.22920661]
[1752961169518,5.73092925,175.41,175.39,0.71]
[1752961170030,5.73092925,175.41,175.4,0.71]
[1752961170192,0.03,175.41,175.4,0.71]
[1752961170390,0.03,175.41,175.4,4.38110661]
[1752961174793,0.03,175.41,175.4,21.16579058]
[1752961175894,0.03,175.41,175.4,4.38110661]
[1752961176502,0.03,175.41,175.4,10.08236088]
[1752961181703,0.03,175.41,175.4,13.75346749]
[1752961183705,0.03,175.41,175.4,10.08236088]
[1752961188944,0.03,175.41,175.4,6.41125427]
[1752961189142,0.03,175.41,175.4,10.08236088]
[1752961189438,0.03,175.41,175.4,6.41125427]
[1752961189647,0.03,175.41,175.4,4.38110661]
[1752961190037,0.03,175.41,175.38,17.49468397]
[1752961190339,0.03,175.41,175.39,0.71]
[1752961190522,0.03,175.41,175.4,3.67110661]
[1752961195026,0.03,175.41,175.4,4.35110661]
[1752961197423,0.03,175.41,175.4,21.13579058]
[1752961197626,0.03,175.41,175.4,26.83704485]
[1752961198743,0.03,175.41,175.4,30.50815146]
[1752961199130,0.03,175.41,175.4,26.83704485]
[1752961200253,0.03,175.41,175.4,30.50815146]
[1752961200459,0.03,175.41,175.4,23.16593824]
[1752961200635,0.03,175.45,175.41,16.78468397]
[1752961200950,0.03,175.45,175.44,20.45579058]
[1752961201443,0.03,175.45,175.44,21.13579058]
[1752961201638,0.73,175.45,175.43,44.25110661]
[1752961201832,0.03,175.45,175.43,44.25110661]
[1752961202240,0.03,175.45,175.44,3.67110661]
[1752961202749,0.73,175.45,175.42,40.58]
[1752961203054,0.03,175.45,175.42,44.25110661]
[1752961203255,0.03,175.45,175.42,44.93110661]
[1752961203630,0.73,175.45,175.41,3.67110661]
[1752961203832,0.7,175.44,175.4,44.93110661]
[1752961204236,3.70110661,175.45,175.4,44.25110661]
[1752961204438,0.7,175.43,175.38,4.35110661]
[1752961204646,5.70060426,175.42,175.38,40.58]
[1752961204957,0.7,175.41,175.38,40.58]
[1752961205151,0.03,175.41,175.38,40.58]
[1752961205351,0.7,175.4,175.38,40.58]
[1752961205847,0.7,175.4,175.37,3.73110661]
[1752961206559,0.7,175.4,175.38,3.67110661]
[1752961210663,0.03,175.41,175.38,3.67110661]
[1752961210869,0.73,175.41,175.38,3.67110661]
[1752961211263,0.73,175.41,175.39,3.67110661]
[1752961211970,0.73,175.41,175.38,3.67110661]
[1752961212560,0.03,175.41,175.38,3.67110661]
[1752961212757,0.7,175.4,175.38,3.67110661]
[1752961213269,0.7,175.4,175.37,0.06]
[1752961213458,4.37110661,175.39,175.37,0.06]
[1752961213656,0.7,175.38,175.37,0.06]
[1752961216470,0.03,175.41,175.37,4.41110661]
[1752961216471,26.73,175.41,175.37,4.41110661]
[1752961216669,26.7,175.4,175.38,3.67110661]
[1752961217254,0.7,175.39,175.38,3.67110661]
[1752961220689,32.43100461,175.41,175.38,3.67110661]
[1752961221066,0.7,175.4,175.38,3.67110661]
[1752961221378,0.7,175.4,175.39,3.67110661]
[1752961221584,6.40125427,175.4,175.39,3.67110661]
[1752961223092,6.40125427,175.4,175.38,3.67110661]
[1752961224193,5.70125427,175.4,175.38,3.67110661]
[1752961224368,26.69,175.41,175.39,3.67110661]
[1752961224579,26.69,175.41,175.4,3.67110661]
[1752961224782,26.69,175.41,175.39,3.67110661]
[1752961225268,26.03,175.41,175.4,3.67110661]
[1752961225671,26.69,175.41,175.4,3.67110661]
[1752961225991,0.69,175.41,175.4,3.67110661]
[1752961226564,0.69,175.41,175.4,3.73110661]
[1752961226765,6.39092925,175.41,175.4,0.06]
[1752961229272,0.69,175.41,175.4,0.06]
[1752961230087,0.03,175.41,175.4,0.06]
[1752961233180,0.03,175.41,175.4,4.45110661]
[1752961233377,0.03,175.41,175.4,0.78]
[1752961233688,0.03,175.41,175.4,0.06]
[1752961242374,0.03,175.41,175.4,3.73110661]
[1752961242673,0.03,175.41,175.4,4.45110661]
[1752961246004,0.03,175.41,175.4,0.78]
[1752961249584,0.03,175.41,175.4,0.06]
[1752961261804,0.72,175.41,175.4,0.06]
[1752961263007,0.03,175.41,175.4,0.06]
[1752961268319,0.72,175.41,175.4,0.06]
[1752961269023,0.03,175.41,175.4,0.06]
[1752961271824,0.03,175.41,175.4,2.41812988]
[1752961272011,0.03,175.41,175.4,3.10812988]
[1752961272508,0.03,175.41,175.4,25.59406812]
[1752961274798,0.03,175.41,175.4,19.89281385]
[1752961283926,0.03,175.41,175.4,2.41812988]
[1752961284316,0.03,175.41,175.4,3.10812988]
[1752961284720,0.03,175.41,175.4,0.06]
[1752961284917,0.72,175.41,175.4,0.06]
[1752961286035,6.42092925,175.41,175.4,0.06]
[1752961286627,5.73092925,175.41,175.4,0.06]
[1752961286931,6.42092925,175.41,175.4,0.06]
[1752961287101,0.03,175.41,175.4,0.06]
[1752961287303,0.03,175.41,175.4,3.10812988]
[1752961293624,0.03,175.41,175.4,0.06]
[1752961293943,0.03,175.41,175.4,2.41812988]
[1752961308168,0.03,175.41,175.4,3.10812988]
[1752961308665,0.03,175.41,175.4,2.41812988]
[1752961308959,0.03,175.41,175.4,0.06]
[1752961312847,0.03,175.41,175.4,43.44812988]
[1752961316262,0.03,175.41,175.4,39.59812936]
[1752961319747,0.03,175.41,175.4,37.23999948]
[1752961320845,0.03,175.41,175.4,36.54999948]
[1752961321575,0.03,175.41,175.4,37.26999948]
[1752961325652,0.03,175.41,175.4,39.62812936]
[1752961334375,0.03,175.41,175.4,37.26999948]
[1752961334583,0.03,175.41,175.4,39.62812936]
[1752961343089,0.03,175.41,175.4,37.26999948]
[1752961343301,0.03,175.41,175.4,0.72]
[1752961343502,0.03,175.41,175.39,3.02812988]
[1752961343799,0.03,175.41,175.4,0.67]
[1752961344570,0.03,175.41,175.39,2.35812988]
[1752961344792,0.03,175.41,175.39,3.02812988]
[1752961345378,0.03,175.41,175.39,2.35812988]
[1752961345624,0.03,175.41,175.4,0.67]
[1752961347197,0.03,175.41,175.4,3.02812988]
[1752961347393,0.03,175.41,175.4,0.67]
[1752961348484,0.03,175.41,175.39,3.02812988]
[1752961348675,0.03,175.41,175.4,0.67]
[1752961350982,0.03,175.41,175.4,3.02812988]
[1752961351296,0.03,175.41,175.4,0.67]
[1752961353197,0.03,175.41,175.4,0.73]
[1752961355600,0.03,175.41,175.4,0.06]
[1752961356374,0.03,175.41,175.4,0.73]
[1752961360105,0.03,175.41,175.4,3.08812988]
[1752961362600,0.75,175.41,175.4,0.06]
[1752961364805,0.75,175.41,175.4,2.41812988]
[1752961365803,0.03,175.41,175.4,2.41812988]
[1752961368604,0.03,175.41,175.4,3.08812988]
[1752961368793,0.03,175.41,175.4,2.41812988]
[1752961369298,0.03,175.41,175.4,0.06]
[1752961376207,2.3798,175.41,175.4,0.06]
[1752961378008,8.08072925,175.41,175.4,0.06]
[1752961383514,6.43092925,175.41,175.4,0.06]
[1752961388307,8.78905913,175.41,175.4,0.06]
[1752961390431,6.43092925,175.41,175.4,0.06]
[1752961393714,5.73092925,175.41,175.4,0.06]
[1752961393931,6.43092925,175.41,175.4,0.06]
[1752961395334,5.73092925,175.41,175.4,0.06]
[1752961396038,6.43092925,175.41,175.4,0.06]
[1752961399634,16.47925913,175.41,175.4,0.06]
[1752961402540,26.0,175.39,175.38,0.06]
[1752961402742,68.51812988,175.39,175.38,0.06]
[1752961402944,69.19812988,175.39,175.38,0.06]
[1752961403640,74.89970921,175.39,175.38,0.06]
[1752961410478,34.73970921,175.39,175.38,0.06]
[1752961410762,74.89970921,175.39,175.38,0.06]
[1752961410930,75.39970921,175.39,175.38,0.06]
[1752961415135,73.04157933,175.39,175.38,0.06]
[1752961415339,75.39970921,175.39,175.38,0.06]
[1752961416136,74.89970921,175.39,175.38,0.06]
[1752961416352,72.54157933,175.39,175.38,0.06]
[1752961416666,74.89970921,175.39,175.38,0.06]
[1752961417047,34.73970921,175.39,175.38,0.06]
[1752961417242,74.87970921,175.39,175.38,0.06]
[1752961417448,34.73970921,175.39,175.38,0.06]
[1752961417762,74.87970921,175.39,175.38,0.06]
[1752961426060,75.37970921,175.39,175.38,0.06]
[1752961426262,74.87970921,175.39,175.38,0.06]
[1752961430862,74.87970921,175.39,175.37,1e-08]
[1752961431063,3.03812988,175.38,175.35,0.06]
[1752961431247,26.0,175.35,175.34,0.06]
[1752961431448,68.47812988,175.35,175.34,0.06]
[1752961431653,69.15812988,175.35,175.24,2.35812988]
[1752961431844,3.03812988,175.34,175.28,0.67]
[1752961432050,42.47812988,175.33,175.28,0.67]
[1752961432249,43.15812988,175.33,175.28,0.67]
[1752961432846,43.15812988,175.33,175.24,2.35812988]
[1752961433079,43.15812988,175.33,175.27,0.65]
[1752961433276,48.86166036,175.33,175.27,0.65]
[1752961433481,46.50353048,175.33,175.27,0.65]
[1752961433682,48.86166036,175.33,175.27,0.65]
[1752961433976,26.0,175.31,175.24,0.65]
[1752961434178,68.45812988,175.31,175.24,0.65]
[1752961434357,69.14812988,175.31,175.24,0.65]
[1752961434560,69.14812988,175.31,175.3,1e-08]
[1752961435281,48.87231104,175.31,175.3,1e-08]
[1752961439165,65.65699501,175.31,175.3,1e-08]
[1752961443087,63.29886513,175.31,175.3,1e-08]
[1752961443292,65.65699501,175.31,175.3,1e-08]
[1752961447084,23.17886513,175.31,175.3,1e-08]
[1752961447391,65.63699501,175.31,175.3,1e-08]
[1752961447577,63.27886513,175.31,175.3,1e-08]
[1752961447885,65.63699501,175.31,175.3,1e-08]
[1752961451981,63.27886513,175.31,175.3,1e-08]
[1752961452296,65.63699501,175.31,175.3,1e-08]
[1752961455982,63.27886513,175.31,175.3,1e-08]
[1752961456182,65.63699501,175.31,175.3,1e-08]
[1752961459515,65.66699501,175.31,175.3,1e-08]
[1752961460006,63.30886513,175.31,175.3,1e-08]
[1752961460215,65.66699501,175.31,175.3,1e-08]
[1752961467028,63.30886513,175.31,175.3,1e-08]
[1752961467325,65.66699501,175.31,175.3,1e-08]
[1752961479227,73.5723829,175.31,175.3,1e-08]
[1752961481038,73.57391334,175.31,175.3,1e-08]
[1752961482426,69.14005798,175.31,175.3,0.69000001]
[1752961482739,64.91699501,175.31,175.3,1e-08]
[1752961484040,65.58699501,175.31,175.3,1e-08]
[1752961484427,25.54699501,175.31,175.3,1e-08]
[1752961484634,65.58699501,175.31,175.3,1e-08]
[1752961485447,64.91699501,175.31,175.3,1e-08]
[1752961485751,62.55886513,175.31,175.3,1e-08]
[1752961485951,64.91699501,175.31,175.3,1e-08]
[1752961486724,48.13231104,175.31,175.3,0.69000001]
[1752961486923,64.91699501,175.31,175.3,0.69000001]
[1752961488054,26.0,175.29,175.28,0.06]
[1752961488272,66.02,175.29,175.28,0.06]
[1752961489951,31.70483199,175.29,175.28,0.06]
[1752961490152,71.72483199,175.29,175.28,0.75]
[1752961491156,34.06296187,175.29,175.28,0.75]
[1752961491326,74.08296187,175.29,175.28,0.75]
[1752961492266,34.06296187,175.29,175.28,0.75]
[1752961492429,74.08296187,175.29,175.28,0.75]
[1752961493656,34.06296187,175.29,175.28,0.75]
[1752961493839,74.08296187,175.29,175.28,0.75]
[1752961499432,71.72483199,175.29,175.28,0.75]
[1752961499635,74.08296187,175.29,175.28,0.75]
[1752961501656,74.08296187,175.29,175.28,0.06]
[1752961508669,71.72483199,175.29,175.28,0.06]
[1752961517158,71.72483199,175.29,175.28,0.76]
[1752961518774,74.08296187,175.29,175.28,0.06]
[1752961518971,31.70483199,175.29,175.28,0.06]
[1752961519170,71.66483199,175.29,175.28,0.76]
[1752961542492,71.66483199,175.29,175.28,0.74]
[1752961544595,71.66483199,175.29,175.28,0.06]
[1752961548216,71.66483199,175.29,175.28,0.74]
[1752961548412,71.66483199,175.29,175.28,0.06]
[1752961549716,71.66483199,175.29,175.28,0.74]
[1752961550215,71.66483199,175.29,175.28,0.06]
[1752961552311,71.66483199,175.29,175.28,0.74]
[1752961553121,71.66483199,175.29,175.28,0.06]
[1752961553299,72.32483199,175.29,175.28,0.06]
[1752961553499,71.66483199,175.29,175.28,0.06]
[1752961554207,70.22276456,175.29,175.28,0.06]
[1752961563025,70.22276456,175.29,175.22,0.1]
[1752961563026,6.5269,175.28,175.22,0.1]
[1752961563227,4.16088507,175.27,175.23,0.7]
[1752961563404,4.16088507,175.27,175.16,6.0802]
[1752961563405,2.35812988,175.24,175.16,6.0802]
[1752961563605,28.35812988,175.2,175.17,0.7]
[1752961563921,41.34,175.19,175.14,14.46231691]
[1752961564107,26.0,175.16,175.14,11.40418703]
[1752961564427,26.0,175.16,175.14,14.46231691]
[1752961564428,40.7,175.15,175.14,14.46231691]
[1752961564724,66.7,175.16,175.14,14.46231691]
[1752961564931,66.7,175.16,175.15,2.35812988]
[1752961565225,72.40906599,175.16,175.15,3.05812988]
[1752961566017,72.40906599,175.16,175.15,2.35812988]